Cogmind - Beta 14 @@@ ROGUE MODE // 2024.10.18 @ 15:25:04 Player: TheGreatPlup Result: Destroyed by Y-45 Defender with Beam Rifle Performance ------------- Evolutions (1) 500 Regions Visited (2) 400 Robots Destroyed (6) 30 Value Destroyed (138) 138 Prototype IDs (0) 0 Alien Tech Used (0) 0 Bonus (0) 0 TOTAL SCORE: 1068 Bonus ------- None Cogmind --------- Core Integrity 0/400 Matter 260/300 Energy 100/100 System Corruption 0% Temperature Cool (9) Movement Core (100) Ox1 Location -9/Materials Parts ------- > --- POWER (1) -------- (None) > --- PROPULSION (2) --- (None) > --- UTILITY (4) ------ Small Storage Unit Sensor Array Improved Targeting Computer > --- WEAPON (2) ------- (None) > --- INVENTORY (8) ---- (None) Peak State ------------ > --- POWER ------------ Light Ion Engine > --- PROPULSION ------- Light Treads Light Treads > --- UTILITY ---------- Small Storage Unit Sensor Array Improved Targeting Computer Hacking Suite > --- WEAPON ----------- (None) > --- INVENTORY -------- (None) [Rating: 10] Favorites ----------- Power Ion Engine Engine Ion Engine Propulsion Aluminum Leg Treads Light Treads Leg Aluminum Leg Utility Small Storage Unit Device Sensor Array Storage Small Storage Unit Processor Improved Targeting Computer Hackware Hacking Suite Weapon Assault Rifle Energy Gun Small Laser Energy Cannon Beam Cannon Ballistic Gun Assault Rifle Special Weapon Mining Laser Build | -11 -10 -9 ------- Run | Yrd Mat Mat Slots Evolved 2 | . . 2 Power . | . . . Propulsion . | . . . Utility 2 | . . 2 Weapon . | . . . Parts Attached 20 | 6 4 10 Power 3 | 1 1 1 Engine 3 | 1 1 1 Core . | . . . Reactor . | . . . Propulsion 6 | 2 . 4 Treads 2 | . . 2 Leg 4 | 2 . 2 Wheel . | . . . Hover . | . . . Flight . | . . . Utility 5 | 1 1 3 Device 2 | . 1 1 Storage 1 | 1 . . Processor 1 | . . 1 Hackware 1 | . . 1 Protection . | . . . Artifact . | . . . Weapon 6 | 2 2 2 Energy Gun 2 | . 1 1 Energy Cannon 1 | . 1 . Ballistic Gun 2 | 2 . . Ballistic Cannon . | . . . Launcher . | . . . Special Weapon 1 | . . 1 Impact Weapon . | . . . Slashing Weapon . | . . . Piercing Weapon . | . . . Special Melee Weapon . | . . . Unidentified Prototypes . | . . . Parts Lost 12 | . 2 10 Power 2 | . . 2 Propulsion 5 | . 1 4 Utility 2 | . . 2 Weapon 3 | . 1 2 Highest Loss Streak 4 | . 2 4 To Critical Strikes . | . . . Average Slot Usage (%) 70 | . 90 47 Engine 9 | . 13 3 Treads 3 | . . 6 Leg 18 | . 27 8 Device 7 | . 5 9 Storage 12 | . 14 11 Processor 2 | . . 4 Energy Gun 1 | . 1 1 Energy Cannon 3 | . 7 . Ballistic Gun 10 | . 19 . Peak Build Rating 10 | 6 7 10 Average Rating 5 | 3 6 4 On Entrance 4 | . 6 7 Naked Turns . | . . . Heaviest Build 16 | 14 16 12 Greatest Support 40 | 20 20 40 Greatest Overweight (x) 1 | . 1 1 Average Overweight (x) . | . . . Largest Inventory Capacity 8 | 8 8 8 Average Capacity 7 | 6 8 8 Most Carried 8 | 5 8 8 Average Carried 4 | 3 5 2 Final Capacity 8 | 8 8 8 Final Carried 8 | 4 8 . Class Distribution -------------------- 100% | Mutant Dominant Class ---------------- Mutant | -10/Materials Mutant | -9/Materials Resources | -11 -10 -9 ----------- Run | Yrd Mat Mat Matter Collected 354 | 225 101 28 Remotely . | . . . Salvage Created 156 | . 128 28 Parts 10 | . 10 . Haulers Intercepted . | . . . Recyclers Shooed . | . . . Parts Field Recycled . | . . . Retrieved Matter . | . . . Parts Self-Destructed . | . . . Prevented . | . . . Kills | -11 -10 -9 ------- Run | Yrd Mat Mat Combat Hostiles Destroyed 5 | . 4 1 Guns 1 | . 1 . Cannons 4 | . 3 1 Classes Destroyed 3 | . 3 . Operator 1 | . 1 . Swarmer 2 | . 2 . Grunt 3 | . 2 1 Best Kill Streak 4 | . 4 1 Combat Bots Only 3 | . 3 1 Max Kills in Single Turn 1 | . 1 1 Gunslinging . | . . . Exploded . | . . . Melee . | . . . Uniques/NPCs Destroyed . | . . . Combat | -11 -10 -9 -------- Run | Yrd Mat Mat Hostile Shots Fired 181 | . 76 105 Missed 50 | . 24 26 Damage Taken 1708 | . 585 1123 Core 539 | . 128 411 Absorbed by Shields . | . . . Core Remaining (%) 74 | 100 48 . Volleys Fired 27 | . 21 6 Largest 2 | . 2 1 Hottest 100 | . 100 100 Shots Fired 46 | . 40 6 Gun 29 | . 24 5 Cannon 16 | . 16 . Launcher . | . . . Special 1 | . . 1 Kinetic 19 | . 19 . Thermal 22 | . 16 6 Explosive . | . . . Electromagnetic 5 | . 5 . Robot Hit Streak 5 | . 5 2 Robot Miss Streak 5 | . 5 2 Penetration Max . | . . . Secondary Targets . | . . . Shots Hit Robots 22 | . 18 4 Core Hits 10 | . 8 2 Critical Kills . | . . . Critical Parts Destroyed . | . . . Critical Strikes . | . . . Melee Attacks . | . . . Impact . | . . . Slashing . | . . . Piercing . | . . . Sneak Attacks . | . . . Combat Hostiles . | . . . Follow-up Attacks . | . . . Damage Inflicted 347 | . 289 58 Guns 183 | . 149 34 Cannons 140 | . 140 . Explosions . | . . . Melee . | . . . Ramming . | . . . Kinetic 134 | . 134 . Thermal 198 | . 140 58 Explosive . | . . . Electromagnetic 15 | . 15 . Impact . | . . . Slashing . | . . . Piercing . | . . . Highest Corruption . | . . . Average Corruption . | . . . Corruption Purged . | . . . Corruption Blocked . | . . . Overload Shots . | . . . Overflow Damage . | . . . Projectiles . | . . . Explosions . | . . . Melee . | . . . Knockbacks . | . . . Impact . | . . . Kinetic . | . . . Secondary . | . . . Self-Inflicted Damage . | . . . Shots . | . . . Rammed . | . . . Targets Rammed 1 | . . 1 Kicked 1 | . . 1 Crushed . | . . . Highest Temperature 546 | . 546 24 Average Temperature 244 | . 271 5 Received Heat Transfer 765 | . 300 465 Effects 6 | . 6 . Shutdowns 2 | . 2 . Energy Bleed 1 | . 1 . Short Circuit 2 | . 2 . Damage (major) 1 | . 1 . Siege Activations . | . . . Robots Corrupted . | . . . Combat Hostiles . | . . . Parts Fried . | . . . Impact Corruptions . | . . . Robots Melted . | . . . Combat Hostiles . | . . . Parts Melted 1 | . 1 . Heat Transferred 421 | . 296 125 Parts Sabotaged . | . . . Parts Stolen . | . . . Parts Stripped . | . . . Power Chain Reactions . | . . . Alert | -11 -10 -9 ------- Run | Yrd Mat Mat Peak Influence 131 | . 131 60 Initial 55 | . . 55 Average 35 | . 44 31 Maximum Alert Level . | . . . Low Security (%) 100 | 100 100 100 Level 1 . | . . . Level 2 . | . . . Level 3 . | . . . Level 4 . | . . . Level 5 . | . . . High Security . | . . . Max Security . | . . . Squads Dispatched 3 | . 2 1 Investigation . | . . . Extermination . | . . . Reinforcement 3 | . 2 1 Assault . | . . . Garrison . | . . . Intercept . | . . . Searches Triggered . | . . . Construction Impeded . | . . . Haulers Reinforced . | . . . Active Scanning Responses . | . . . Cargo Convoy Interrupts . | . . . Stealth | -11 -10 -9 --------- Run | Yrd Mat Mat Distress Signals 1 | . . 1 Communications Jammed . | . . . Distress Signals . | . . . Times Spotted 19 | . 10 9 Peak Tracking Total 6 | . 6 6 Tactical Retreats . | . . . Traps | -11 -10 -9 ------- Run | Yrd Mat Mat Traps Triggered 1 | . 1 . Indirectly . | . . . Trap Hack Attempts . | . . . Triggered . | . . . Disarmed . | . . . Reprogrammed . | . . . Reused . | . . . Traps Extracted . | . . . Installed . | . . . Triggered . | . . . Machines | -11 -10 -9 ---------- Run | Yrd Mat Mat Machines Disabled . | . . . Max in Single Turn . | . . . Machines Repaired . | . . . Machines Dismantled . | . . . Machines Sabotaged . | . . . Overloaded Fab Kills . | . . . Hacking | -11 -10 -9 --------- Run | Yrd Mat Mat Machines Accessed . | . . . Terminals . | . . . Fabricators . | . . . Repair Stations . | . . . Recycling Units . | . . . Scanalyzers . | . . . Garrison Access . | . . . Total Hacks . | . . . Successful . | . . . Failed . | . . . Catastrophic . | . . . Database Lockouts . | . . . Manual . | . . . Terminals . | . . . Fabricators . | . . . Repair Stations . | . . . Recycling Units . | . . . Scanalyzers . | . . . Garrison Access . | . . . Terminal Hacks . | . . . Fabricator Hacks . | . . . Repair Station Hacks . | . . . Recycling Unit Hacks . | . . . Scanalyzer . | . . . Garrison Access Hacks . | . . . Unauthorized Hacks . | . . . Terminals . | . . . Fabricators . | . . . Repair Stations . | . . . Recycling Units . | . . . Scanalyzers . | . . . Garrison Access . | . . . Data Cores Recovered . | . . . Used . | . . . Hacking Detections . | . . . Full Trace Events . | . . . Feedback Events . | . . . Feedback Blocked . | . . . Robot Schematics Acquired . | . . . Robots Built . | . . . Authchips . | . . . Time . | . . . Total Robot Build Rating . | . . . Part Schematics Acquired . | . . . Parts Built . | . . . Authchips . | . . . Time . | . . . Total Part Build Rating . | . . . Parts Repaired . | . . . Time . | . . . Parts Recycled . | . . . Recycled Matter . | . . . Retrieved Matter . | . . . Retrieved Components . | . . . Parts Scanalyzed . | . . . Part Schematics Acquired . | . . . Parts Damaged . | . . . Bothacking | -11 -10 -9 ------------ Run | Yrd Mat Mat Used RIF Installer . | . . . Robots Hacked . | . . . Non-combat . | . . . Combat . | . . . Robot Hacks Applied . | . . . Relay Couplers Released . | . . . Fabnet Peak Effective % . | . . . Robots Rewired . | . . . Allies Hacked . | . . . Hacks Repelled . | . . . Allies | -11 -10 -9 -------- Run | Yrd Mat Mat Total Allies . | . . . Largest Group . | . . . Highest-Rated Group . | . . . Highest-Rated Ally . | . . . Total Orders . | . . . Ally Attacks . | . . . Total Damage . | . . . Kills . | . . . Allies Corrupted . | . . . Allies Melted . | . . . Intel | -11 -10 -9 ------- Run | Yrd Mat Mat Robot Analysis Total . | . . . Derelict Logs Recovered . | . . . Drone Launches . | . . . Drone Recoveries . | . . . Exploration | -11 -10 -9 ------------- Run | Yrd Mat Mat Turns Passed 705 | 55 360 290 Spaces Moved 365 | 44 201 120 Core 59 | 16 . 43 Treads 12 | . . 12 Legs 294 | 28 201 65 Wheels . | . . . Hover . | . . . Flight . | . . . Fastest Speed 50 | 50 120 100 Average Speed 117 | 94 122 116 Slowest Speed 190 | 120 190 160 Overloaded Moves . | . . . Propulsion Burnouts . | . . . Robots Hopped . | . . . Cave-ins Triggered . | . . . Exploration Rate (%) 22 | 3 47 18 Regions Visited 2 Branch Regions . Pre-discovered Areas . | . . . Known Exits Taken . | . . . Unknown Exits Taken 2 | 1 1 . Scrap Searched . | . . . Spaces Dug . | . . . Terrain Destroyed . | . . . Melee . | . . . Projectile . | . . . AOE . | . . . Terrain Rammed . | . . . Walls Destroyed . | . . . Machines Disabled . | . . . Actions | -11 -10 -9 --------- Run | Yrd Mat Mat Total 593 | 55 275 263 Wait 162 | . 41 121 Move 363 | 43 200 120 Hop . | . . . Pick Up 16 | 6 8 2 Fast Attach 4 | 4 . . Attach 14 | 2 3 9 Detach . | . . . Swap 2 | . 1 1 Drop 4 | . 1 3 Fire 27 | . 21 6 Melee . | . . . Ram . | . . . Kick 1 | . . 1 Crush . | . . . Escape Stasis . | . . . Rewire . | . . . Trap . | . . . Miscellaneous . | . . . Route ------- -11/Scrapyard -10/Materials (discovered 2 exits: [*Mat x2]) -9/Materials (discovered 2 exits: [*Min] / [*Sto]) History --------- Turn | Location | Event 14 | -11/Scrapyard | Discovered new exit (range 15) 56 | -11/Scrapyard | Entered Materials 305 | -10/Materials | Build established: Mutant 327 | -10/Materials | Discovered new exit (range 16) 346 | -10/Materials | Discovered new exit (range 16) 410 | -10/Materials | Core integrity fell below 50% 416 | -10/Materials | Entered another Materials area 416 | -9/Materials | Evolved 2 slots: Utility x2 436 | -9/Materials | Discovered new exit (range 16) 535 | -9/Materials | Discovered new exit (range 9) 582 | -9/Materials | Lost 4 parts (2n1u1w) 619 | -9/Materials | Core integrity fell below 50% 682 | -9/Materials | Core integrity fell below 20% 706 | -9/Materials | Destroyed by Y-45 Defender with Beam Rifle Last Messages --------------- 00569_ Machine disabled. 00584_ ALERT: Hostiles spotted, dispatching reinforcements to Terminal M008. 00588_ Acquired Imp. Targeting Computer. 00621_ Critical hit (Burn: +37). 00621_ Hacking Suite destroyed. 00651_ Lgt. Treads destroyed. 00656_ Lgt. Ion Engine destroyed. 00663_ K-01 Serf collects debris. 00666_ Critical hit (Burn: +37). 00669_ K-01 Serf collects debris. 00672_ K-01 Serf cleans the Fusion Modulator. 00679_ K-01 Serf collects debris. 00682_ K-01 Serf cleans the Fusion Modulator. 00683_ K-01 Serf collects debris. 00685_ K-01 Serf cleans the Fusion Modulator. 00686_ Lgt. Treads destroyed. 00689_ K-01 Serf collects debris. 00696_ Critical hit (Burn: +37). 00697_ K-01 Serf cleans the Fusion Modulator. Map ----- +----------------------------------------------------+ | ??# """ """ # #???????????? ??????????????????? | | ??# """ """ # #???????????" ???????????????????? | | ??? """ """ / +???????????" ???????????????????? | | ??# # #???????????" ???????????????????? | | ??######+#### ##?????????? ???????????????????? | | ?????????### ###########+##??????????????????? | | ?? #??????????????????? | | ? T #??????????????????? | | ?? #??????????????????? | | ??##+####### ########## #??????????????????? | | ???????????###+###?????#### ##?????????????????? | | ???????????????????????#""" * #?????????????????? | | ???????????????????????#" % #?????????????????? | | ???????????????????????#"! = #?????????????????? | | ???????????????????????#"" < #?????????????????? | | ???????????????????????#" #?????????????????? | | ???????????????????????#" #?????????????????? | | ???????????????????????#"" #?????????????????? | | ???????????????????????#### ##?????????????????? | | ??????????????????????????# #??????????????????? | | ??????????????????????????# #??????????????????? | | ?????????????????########## #??????????????????? | | ?????????????????# # #??????????????????? | | ?????????????????# """ # #??????????????????? | | ?????????????????# """ #g k# #??????????? | | ?????????????????# """ @Ys + "T" ?????????????? | | ?????????????????# k #s # """ ?????????????? | | ?????????????????# """ # #??????????????????? | | ?????????????????# """ # #??????????????????? | | ?????????????????# """ # #??????????????????? | | ?????????????????# # ? ??????????????????? | | ?????????????????########## ?????????????????? | | ??????????????????????????# ????????????????? | | ??????????????????????????##+### ???????????????? | | ???????????????????????????? ??? ??????????????? | | ???????????????????????????? ???? ?????????????? | | ???????????????????????????? ????? ????????????? | | ???????????????????????????? ????? ?????????????? | | ???????????????????????????? ????????????????????? | | ?????????????????????????????????????????????????? | | ?????????????????????????????????????????????????? | | ?????????????????????????????????????????????????? | | ?????????????????????????????????????????????????? | | ?????????????????????????????????????????????????? | | ?????????????????????????????????????????????????? | | ?????????????????????????????????????????????????? | | ?????????????????????????????????????????????????? | | ?????????????????????????????????????????????????? | | ?????????????????????????????????????????????????? | | ?????????????????????????????????????????????????? | +----------------------------------------------------+ Best States ------------- Heat Dissipation 28 Energy Generation 10 Energy Capacity 250 Matter Stores 300 Matter Capacity 300 Sight Range 16 Robot Scan Range 14 Terrain Scan Density 10 Evasion (%) 55 Targeting Accuracy 6 Recoil Reduction 2 Offensive Hacking 10 Item Schematics ----------------- None Robot Schematics ------------------ None Fabricated ------------ Nothing Alien Tech Used ----------------- None Achievements -------------- None Challenges ------------ None Game ------ Seed ImpactReactionCharge Manual? 0 Play Time 00:11:29 Cumulative 15.9 hours Start 2024.10.18 @ 15:14:08 End 2024.10.18 @ 15:25:04 Sessions 1 Manual Loads 0 Difficulty Rogue Special Mode None Game No. 22 Rogue 22 Adventurer 0 Explorer 0 Win Type - Total 0 Types 0/0/0/0/0/0/0/0/0 Lore% 10 Gallery% 12 Achievement% 11 Wizard Run 0 Options --------- Layout 0 ASCII 0 Keyboard 0 Movement Mouse Keybinds 0 Fullscreen 2 Font 18/SmallcapsGlow Map View 38x25 Zoom Use 99% Tactical HUD 1 Map Filters NONE Filters NONE Steam 1 RUN: 5a23b2d6-5905-4d27-8668-ac86d44b25b4